[Event "Lliga Catalana 2024"]
[Site "Catalonia"]
[Date "2024.02.03"]
[Round "3.3"]
[White "Sokolovsky, Yahli"]
[Black "Moskalenko, Viktor"]
[Result "0-1"]
[ECO "B08"]
[WhiteElo "2436"]
[BlackElo "2416"]
[Annotator "RC"]
[PlyCount "108"]
[EventDate "2024.01.18"]
[EventType "team-tourn"]
[EventCountry "ESP"]
[SourceTitle "playchess.com"]
[Source "ChessBase"]
[SourceQuality "1"]
[TimeControl "5400+30"]

1. e4 {[%emt 0:00:05]} d6 {[%emt 0:00:58]} 2. d4 {[%emt 0:00:10]} Nf6 {[%emt 0:00:25]} 3. Nc3 {[%emt 0:00:17]} g6 {[%emt 0:00:09]} 4. Nf3 {[%emt 0:01:50]} Bg7 {[%emt 0:00:29]} 5. Be3 {[%emt 0:00:07]} c6 {[%emt 0:10:17]} 6. Qd2 {[%emt 0:00:11]} Bg4 {[%emt 1:21:12]} 7. Be2 {[%emt 0:08:02]} O-O {[%emt 0:00:30]} 8. h3 {[%emt 0:09:34]} Bxf3 {[%emt 0:00:00]} 9. Bxf3 {[%emt 0:00:06]} Nbd7 {[%emt 0:00:00]} 10. O-O-O {[%emt 0:02:35]} Nb6 {[%emt 0:00:00]} 11. Be2 {[%emt 0:04:44]} e5 {[%emt 0:00:00]} 12. dxe5 {[%emt 0:09:38]} dxe5 {[%emt 0:02:30]} 13. a4 {[%emt 0:59:41]} Qxd2+ {[%emt 0:00:00]} 14. Rxd2 {[%emt 0:00:00]} Rfd8 {[%emt 0:01:00]} 15. Rhd1 {[%emt 0:00:00]} Rxd2 {[%emt 0:00:00]} 16. Rxd2 {[%emt 0:01:30]} Bf8 {[%emt 0:00:00]} 17. a5 {[%emt 0:00:00]} Nbd7 {[%emt 0:00:00]} 18. g4 {[%emt 0:01:00]} Nc5 {[%emt 0:02:00]} 19. Bf3 {[%emt 0:00:30]} h6 {[%emt 0:00:30]} 20. h4 {[%emt 0:00:00]} b6 {[%emt 0:00:30]} 21. g5 {[%emt 0:00:00]} hxg5 {[%emt 0:00:30]} 22. Bxg5 {[%emt 0:00:00]} Kg7 {[%emt 0:00:00]} 23. Bg2 {[%emt 0:02:00]} Ne6 {[%emt 0:00:00]} 24. Ne2 {[%emt 0:00:00]} Bc5 {[%emt 0:00:00]} 25. Rd3 {[%emt 0:01:00]} Nxg5 {[%emt 0:00:00]} 26. hxg5 {[%emt 0:00:00]} Nh7 {[%emt 0:02:30]} 27. f4 {[%emt 0:01:00]} exf4 {[%emt 0:00:00]} 28. Nxf4 {[%emt 0:00:00]} Be7 {[%emt 0:01:00]} 29. Ne2 {[%emt 0:00:00]} Bxg5+ {[%emt 0:00:00]} 30. Kb1 {[%emt 0:00:00]} Nf8 {[%emt 0:00:00]} 31. Nd4 {[%emt 0:00:00]} c5 {[%emt 0:00:00]} 32. Nf3 {[%emt 0:00:00]} Bf4 {[%emt 0:00:00]} 33. a6 {[%emt 0:00:00]} Re8 {[%emt 0:00:00]} 34. Ng1 {[%emt 0:00:00]} Re7 {[%emt 0:00:00]} 35. Nh3 {[%emt 0:00:00]} Bc7 {[%emt 0:00:00]} 36. Nf2 {[%emt 0:00:00]} Nd7 {[%emt 0:04:00]} 37. Ng4 {[%emt 0:00:00]} Ne5 {[%emt 0:00:00]} 38. Nxe5 {[%emt 0:00:00]} Bxe5 {[%emt 0:00:00]} 39. Rd8 {[%emt 0:00:00]} Kf6 {[%emt 0:00:00]} 40. Bh3 {[%emt 0:00:00]} Kg5 {[%emt 0:00:00]} 41. Bc8 {[%emt 0:00:00]} Bc7 {[%emt 0:00:00]} 42. Rf8 {[%emt 0:07:30]} Kf4 {[%emt 0:00:13]} 43. Bb7 {[%emt 0:00:00]} b5 {[%emt 0:00:12]} 44. Bd5 {[%emt 0:00:00]} g5 {[%emt 0:00:31]} 45. Kc1 {[%emt 0:00:00]} g4 {[%emt 0:00:24]} 46. Kd2 {[%emt 0:00:00]} Be5 {[%emt 0:03:40]} 47. b3 {[%emt 0:02:30]} f6 {[%emt 0:00:00]} 48. Rh8 {[%emt 0:00:00]} Kf3 {[%emt 0:01:00]} 49. Ke1 {[%emt 0:00:27]} g3 {[%emt 0:00:00]} 50. Rh3 {[%emt 0:00:01]} Rd7 {[%emt 0:00:00]} 51. Kf1 {[%emt 0:00:32]} Rd6 {[%emt 0:00:00]} 52. Ke1 {[%emt 0:00:13]} Rxa6 {[%emt 0:00:00]} 53. Kd2 {[%emt 0:00:11]} Kf2 {[%emt 0:00:17]} 54. Rh5 {[%emt 0:00:23]} g2 {[%emt 0:00:13]} 0-1

[Event "Lliga Catalana 2024"]
[Site "Catalonia"]
[Date "2024.02.03"]
[Round "3.3"]
[White "Pozanco Romasanta, Marc"]
[Black "Lorenzo De La Riva, Lazaro"]
[Result "0-1"]
[ECO "D37"]
[WhiteElo "2033"]
[BlackElo "2419"]
[Annotator "ChessBase"]
[PlyCount "122"]
[EventDate "2024.01.18"]
[EventType "team-tourn"]
[EventCountry "ESP"]
[SourceTitle "playchess.com"]
[Source "ChessBase"]
[SourceQuality "1"]
[TimeControl "5400+30"]

1. d4 {[%emt 0:00:18]} d5 {[%emt 0:00:14]} 2. c4 {[%emt 0:00:24]} e6 {[%emt 0:00:04]} 3. Nc3 {[%emt 0:00:23]} a6 {[%emt 0:00:06]} 4. cxd5 {[%emt 0:00:43]} exd5 {[%emt 0:00:03]} 5. Nf3 {[%emt 0:00:30]} Nf6 {[%emt 0:00:06]} 6. Bg5 {[%emt 0:00:30]} Be6 {[%emt 0:00:04]} 7. e3 {[%emt 0:01:22]} Bd6 {[%emt 0:00:17]} 8. Bd3 {[%emt 0:01:33]} Nbd7 {[%emt 0:00:20]} 9. O-O {[%emt 0:01:30]} c6 {[%emt 0:00:07]} 10. Qc2 {[%emt 0:04:49]} Qc7 {[%emt 0:00:13]} 11. e4 {[%emt 0:08:00]} dxe4 {[%emt 0:00:09]} 12. Nxe4 {[%emt 0:00:06]} Nxe4 {[%emt 0:00:14]} 13. Bxe4 {[%emt 0:00:06]} h6 {[%emt 0:00:19]} 14. Bh4 {[%emt 0:03:01]} O-O {[%emt 0:00:04]} 15. Bg3 {[%emt 0:04:52]} Bxg3 {[%emt 0:00:03]} 16. hxg3 {[%emt 0:00:28]} Nf6 {[%emt 0:00:03]} 17. Bf5 {[%emt 0:02:54]} Bxf5 {[%emt 0:00:09]} 18. Qxf5 {[%emt 0:00:06]} Rad8 {[%emt 0:00:04]} 19. Rfe1 {[%emt 0:01:39]} Qb6 {[%emt 0:01:58]} 20. Qc5 {[%emt 0:13:37]} Qc7 {[%emt 0:02:17]} 21. Re7 {[%emt 0:07:41]} Rd7 {[%emt 0:00:10]} 22. Rae1 {[%emt 0:00:28]} Rfd8 {[%emt 0:00:25]} 23. R7e5 {[%emt 0:13:42]} Rd5 {[%emt 0:00:28]} 24. Qc2 {[%emt 0:02:35]} Qc8 {[%emt 0:02:17]} 25. Re7 {[%emt 0:02:56]} R5d7 {[%emt 0:00:03]} 26. Qb3 {[%emt 0:02:40]} Nd5 {[%emt 0:00:09]} 27. R7e5 {[%emt 0:00:17]} Rd6 {[%emt 0:01:45]} 28. a3 {[%emt 0:06:00]} Rf6 {[%emt 0:00:17]} 29. Qc2 {[%emt 0:01:14]} Nc7 {[%emt 0:00:16]} 30. Qe4 {[%emt 0:02:19]} Rfd6 {[%emt 0:00:48]} 31. g4 {[%emt 0:02:51]} Ne6 {[%emt 0:00:48]} 32. g5 {[%emt 0:01:22]} hxg5 {[%emt 0:00:03]} 33. Nxg5 {[%emt 0:01:47]} Nxg5 {[%emt 0:00:03]} 34. Rxg5 {[%emt 0:00:06]} Rxd4 {[%emt 0:00:35]} 35. Qe7 {[%emt 0:01:19]} R4d5 {[%emt 0:01:33]} 36. Rg3 {[%emt 0:05:35]} R8d6 {[%emt 0:00:05]} 37. Qe8+ {[%emt 0:03:32]} Qxe8 {[%emt 0:00:04]} 38. Rxe8+ {[%emt 0:00:03]} Kh7 {[%emt 0:00:06]} 39. Rh3+ {[%emt 0:00:02]} Rh6 {[%emt 0:00:11]} 40. Rxh6+ {[%emt 0:02:11]} Kxh6 {[%emt 0:00:02]} 41. Re7 {[%emt 0:00:12]} Rb5 {[%emt 0:00:05]} 42. Re2 {[%emt 0:04:07]} Kg5 {[%emt 0:00:04]} 43. Kf1 {[%emt 0:00:14]} Kf5 {[%emt 0:00:19]} 44. Rd2 {[%emt 0:01:12]} Rd5 {[%emt 0:00:02]} 45. Rc2 {[%emt 0:00:06]} c5 {[%emt 0:00:58]} 46. Ke2 {[%emt 0:00:06]} b5 {[%emt 0:00:06]} 47. Kf3 {[%emt 0:01:37]} c4 {[%emt 0:00:07]} 48. Ke2 {[%emt 0:00:30]} Ke5 {[%emt 0:00:19]} 49. Rc3 {[%emt 0:00:20]} Kd6 {[%emt 0:00:56]} 50. Rh3 {[%emt 0:00:38]} a5 {[%emt 0:00:43]} 51. f4 {[%emt 0:00:44]} b4 {[%emt 0:00:24]} 52. axb4 {[%emt 0:00:36]} axb4 {[%emt 0:00:02]} 53. Rh8 {[%emt 0:00:10]} Kc5 {[%emt 0:00:49]} 54. Rf8 {[%emt 0:00:50]} f5 {[%emt 0:00:20]} 55. Ke3 {[%emt 0:00:35]} Rd3+ {[%emt 0:00:09]} 56. Ke2 {[%emt 0:00:07]} Rb3 {[%emt 0:00:05]} 57. Rxf5+ {[%emt 0:00:35]} Kd4 {[%emt 0:00:02]} 58. Rf7 {[%emt 0:00:19]} Rxb2+ {[%emt 0:00:07]} 59. Kf3 {[%emt 0:00:03]} c3 {[%emt 0:00:11]} 60. Rxg7 {[%emt 0:00:30]} c2 {[%emt 0:00:19]} 61. Rc7 {[%emt 0:00:48]} Rb3+ {[%emt 0:00:22]} 0-1

[Event "Lliga Catalana 2024"]
[Site "Catalonia"]
[Date "2024.02.03"]
[Round "3.4"]
[White "Salinas Tomas, Daniel"]
[Black "Matnadze Bujiashvili, Ann"]
[Result "1-0"]
[ECO "E20"]
[WhiteElo "2363"]
[BlackElo "2364"]
[Annotator "ChessBase"]
[PlyCount "97"]
[EventDate "2024.01.18"]
[EventType "team-tourn"]
[EventCountry "ESP"]
[SourceTitle "playchess.com"]
[Source "ChessBase"]
[SourceQuality "1"]
[TimeControl "5400+30"]

1. d4 {[%emt 0:00:10]} Nf6 {[%emt 0:00:10]} 2. c4 {[%emt 0:00:06]} e6 {[%emt 0:00:04]} 3. g3 {[%emt 0:00:08]} Bb4+ {[%emt 0:00:35]} 4. Nc3 {[%emt 0:00:31]} O-O {[%emt 0:00:38]} 5. Bg2 {[%emt 0:00:13]} d5 {[%emt 0:03:14]} 6. Nf3 {[%emt 0:00:08]} Nc6 {[%emt 0:02:10]} 7. O-O {[%emt 0:00:55]} dxc4 {[%emt 0:00:11]} 8. Qa4 {[%emt 0:00:21]} Nd5 {[%emt 0:00:29]} 9. Qc2 {[%emt 0:00:08]} Be7 {[%emt 0:00:42]} 10. Rd1 {[%emt 0:03:38]} Rb8 {[%emt 0:02:43]} 11. e4 {[%emt 0:03:18]} Ndb4 {[%emt 0:00:43]} 12. Qe2 {[%emt 0:00:16]} Nd3 {[%emt 0:04:52]} 13. Be3 {[%emt 0:00:13]} Na5 {[%emt 0:06:09]} 14. Ne5 {[%emt 0:05:03]} b5 {[%emt 0:05:40]} 15. Nxd3 {[%emt 0:03:55]} cxd3 {[%emt 0:00:02]} 16. Qxd3 {[%emt 0:02:37]} Nc4 {[%emt 0:00:10]} 17. Qe2 {[%emt 0:04:51]} Nxe3 {[%emt 0:07:36]} 18. Qxe3 {[%emt 0:00:12]} Bd7 {[%emt 0:10:53]} 19. d5 {[%emt 0:02:02]} b4 {[%emt 0:06:57]} 20. dxe6 {[%emt 0:02:03]} fxe6 {[%emt 0:00:54]} 21. Na4 {[%emt 0:01:40]} Qe8 {[%emt 0:02:25]} 22. Nc5 {[%emt 0:00:17]} Bc8 {[%emt 0:00:48]} 23. e5 {[%emt 0:06:10]} Rb6 {[%emt 0:05:18]} 24. Rac1 {[%emt 0:01:10]} Rf7 {[%emt 0:07:38]} 25. Rc2 {[%emt 0:03:18]} Bf8 {[%emt 0:05:15]} 26. Rcd2 {[%emt 0:01:10]} Qe7 {[%emt 0:05:15]} 27. Rd8 {[%emt 0:02:08]} Rb5 {[%emt 0:00:05]} 28. Nb3 {[%emt 0:08:44]} Bb7 {[%emt 0:02:12]} 29. Bxb7 {[%emt 0:03:00]} Rxb7 {[%emt 0:00:02]} 30. Qe4 {[%emt 0:01:55]} Rb6 {[%emt 0:02:25]} 31. Qa8 {[%emt 0:03:39]} Qg5 {[%emt 0:07:32]} 32. R1d7 {[%emt 0:02:53]} Rf5 {[%emt 0:07:22]} 33. Nd4 {[%emt 0:00:39]} Rf4 {[%emt 0:00:16]} 34. Nc6 {[%emt 0:01:29]} Rxc6 {[%emt 0:02:04]} 35. Qxc6 {[%emt 0:00:09]} Qg6 {[%emt 0:00:27]} 36. Re7 {[%emt 0:01:14]} Rf5 {[%emt 0:03:30]} 37. Qxe6+ {[%emt 0:00:17]} Qxe6 {[%emt 0:00:03]} 38. Rxe6 {[%emt 0:00:02]} Kf7 {[%emt 0:00:14]} 39. Rc6 {[%emt 0:00:30]} g6 {[%emt 0:01:21]} 40. Rxc7+ {[%emt 0:00:07]} Ke6 {[%emt 0:00:04]} 41. Re8+ {[%emt 0:00:08]} Kd5 {[%emt 0:00:05]} 42. e6 {[%emt 0:02:11]} Bc5 {[%emt 0:00:34]} 43. e7 {[%emt 0:00:17]} Ke6 {[%emt 0:01:21]} 44. Rf8 {[%emt 0:00:29]} Rxf8 {[%emt 0:00:34]} 45. exf8=Q {[%emt 0:00:16]} Bxf8 {[%emt 0:00:04]} 46. Rxa7 {[%emt 0:00:10]} h5 {[%emt 0:00:14]} 47. a3 {[%emt 0:00:07]} Kd5 {[%emt 0:00:16]} 48. axb4 {[%emt 0:00:06]} Bxb4 {[%emt 0:00:04]} 49. Rg7 {[%emt 0:00:06]} 1-0

[Event "Lliga Catalana 2024"]
[Site "Catalonia"]
[Date "2024.02.03"]
[Round "3.4"]
[White "Alonso Moyano, Jonathan"]
[Black "Martin Capitan, Feliciano"]
[Result "1-0"]
[ECO "C54"]
[WhiteElo "2331"]
[BlackElo "2028"]
[Annotator "ChessBase"]
[PlyCount "49"]
[EventDate "2024.01.18"]
[EventType "team-tourn"]
[EventCountry "ESP"]
[SourceTitle "playchess.com"]
[Source "ChessBase"]
[SourceQuality "1"]
[TimeControl "5400+30"]

1. e4 {[%emt 0:00:06]} e5 {[%emt 0:00:17]} 2. Nf3 {[%emt 0:00:16]} Nc6 {[%emt 0:00:13]} 3. Bc4 {[%emt 0:00:11]} Nf6 {[%emt 0:00:19]} 4. d3 {[%emt 0:00:06]} Bc5 {[%emt 0:00:46]} 5. O-O {[%emt 0:00:24]} d6 {[%emt 0:01:48]} 6. c3 {[%emt 0:00:18]} Bb6 {[%emt 0:03:51]} 7. a4 {[%emt 0:01:47]} a6 {[%emt 0:02:22]} 8. Nbd2 {[%emt 0:00:09]} O-O {[%emt 0:00:25]} 9. Re1 {[%emt 0:01:31]} Ne7 {[%emt 0:03:57]} 10. a5 {[%emt 0:07:23]} Ba7 {[%emt 0:01:49]} 11. Nf1 {[%emt 0:00:12]} Ng6 {[%emt 0:01:04]} 12. Ng3 {[%emt 0:03:55]} Be6 {[%emt 0:14:08]} 13. Bxe6 {[%emt 0:10:17]} fxe6 {[%emt 0:04:50]} 14. d4 {[%emt 0:00:11]} Qe7 {[%emt 0:11:27]} 15. Be3 {[%emt 0:02:07]} Ng4 {[%emt 0:50:44]} 16. Bg5 {[%emt 0:01:08]} Qf7 {[%emt 0:00:00]} 17. h3 {[%emt 0:02:21]} h6 {[%emt 0:00:00]} 18. Bc1 {[%emt 0:15:00]} Nf6 {[%emt 0:00:00]} 19. Be3 {[%emt 0:04:15]} Nd7 {[%emt 0:00:00]} 20. Qb3 {[%emt 0:08:17]} Rab8 {[%emt 0:00:00]} 21. d5 {[%emt 0:04:58]} Nc5 {[%emt 0:00:00]} 22. Bxc5 {[%emt 0:00:34]} Bxc5 {[%emt 0:00:00]} 23. dxe6 {[%emt 0:00:06]} Qf4 {[%emt 0:00:00]} 24. Nh5 {[%emt 0:01:17]} Bxf2+ {[%emt 0:00:00]} 25. Kh1 {[%emt 0:00:05]} 1-0

[Event "Lliga Catalana 2024"]
[Site "Catalonia"]
[Date "2024.02.03"]
[Round "3.5"]
[White "Eugene, Floryan"]
[Black "Perpinya Rofes, Lluis Maria"]
[Result "1-0"]
[ECO "B31"]
[WhiteElo "2398"]
[BlackElo "2236"]
[Annotator "ChessBase"]
[PlyCount "85"]
[EventDate "2024.01.18"]
[EventType "team-tourn"]
[EventCountry "ESP"]
[SourceTitle "playchess.com"]
[Source "ChessBase"]
[SourceQuality "1"]
[TimeControl "5400+30"]

1. e4 {[%emt 0:00:09]} c5 {[%emt 0:04:53]} 2. Nf3 {[%emt 0:00:07]} Nc6 {[%emt 0:00:18]} 3. Bb5 {[%emt 0:00:09]} g6 {[%emt 0:00:20]} 4. c3 {[%emt 0:01:07]} Nf6 {[%emt 0:02:07]} 5. Qe2 {[%emt 0:00:09]} Bg7 {[%emt 0:02:46]} 6. O-O {[%emt 0:00:12]} O-O {[%emt 0:04:12]} 7. d4 {[%emt 0:00:09]} d5 {[%emt 0:03:40]} 8. e5 {[%emt 0:00:06]} Ne4 {[%emt 0:00:18]} 9. Rd1 {[%emt 0:00:05]} cxd4 {[%emt 0:06:01]} 10. cxd4 {[%emt 0:00:40]} Bd7 {[%emt 0:05:28]} 11. Ne1 {[%emt 0:06:24]} h6 {[%emt 0:21:58]} 12. Nc3 {[%emt 0:13:40]} Nxc3 {[%emt 0:05:59]} 13. bxc3 {[%emt 0:00:03]} Qa5 {[%emt 0:00:56]} 14. Bxc6 {[%emt 0:36:06]} Bxc6 {[%emt 0:00:43]} 15. Bd2 {[%emt 0:00:45]} Rac8 {[%emt 0:04:20]} 16. Qg4 {[%emt 0:07:16]} Kh7 {[%emt 0:06:27]} 17. Nf3 {[%emt 0:03:27]} Qa4 {[%emt 0:11:12]} 18. Qh4 {[%emt 0:01:26]} f6 {[%emt 0:02:25]} 19. Re1 {[%emt 0:00:57]} Rce8 {[%emt 0:01:01]} 20. Qg3 {[%emt 0:05:46]} Qc2 {[%emt 0:03:28]} 21. Rac1 {[%emt 0:00:13]} Qf5 {[%emt 0:00:36]} 22. Nh4 {[%emt 0:03:51]} Qh5 {[%emt 0:00:10]} 23. f4 {[%emt 0:02:10]} fxe5 {[%emt 0:03:31]} 24. dxe5 {[%emt 0:01:40]} e6 {[%emt 0:01:54]} 25. Nf3 {[%emt 0:02:40]} Rg8 {[%emt 0:01:09]} 26. Qf2 {[%emt 0:01:14]} Bf8 {[%emt 0:01:45]} 27. Nd4 {[%emt 0:01:50]} Bc5 {[%emt 0:01:20]} 28. Re3 {[%emt 0:00:04]} Bxd4 {[%emt 0:00:47]} 29. cxd4 {[%emt 0:00:04]} Qf5 {[%emt 0:00:35]} 30. Rh3 {[%emt 0:03:35]} Rc8 {[%emt 0:02:15]} 31. Qh4 {[%emt 0:05:12]} h5 {[%emt 0:01:58]} 32. Rhc3 {[%emt 0:02:20]} Qf7 {[%emt 0:00:52]} 33. Qg5 {[%emt 0:00:35]} Rge8 {[%emt 0:00:47]} 34. f5 {[%emt 0:00:32]} exf5 {[%emt 0:00:14]} 35. Qh6+ {[%emt 0:00:29]} Kg8 {[%emt 0:00:06]} 36. Rg3 {[%emt 0:00:06]} Re6 {[%emt 0:00:17]} 37. Qxh5 {[%emt 0:00:58]} Bd7 {[%emt 0:01:01]} 38. Rxc8+ {[%emt 0:01:02]} Bxc8 {[%emt 0:00:10]} 39. Qh4 {[%emt 0:00:02]} Re8 {[%emt 0:01:21]} 40. Rh3 {[%emt 0:02:00]} Qg7 {[%emt 0:00:33]} 41. Bg5 {[%emt 0:00:13]} f4 {[%emt 0:00:32]} 42. Bf6 {[%emt 0:00:32]} g5 {[%emt 0:00:11]} 43. Qh5 {[%emt 0:01:55]} 1-0

[Event "Lliga Catalana 2024"]
[Site "Catalonia"]
[Date "2024.02.03"]
[Round "3.5"]
[White "Martin Perez, Pau"]
[Black "Villa Tornero, Alex"]
[Result "0-1"]
[ECO "A30"]
[WhiteElo "2042"]
[BlackElo "2321"]
[Annotator "ChessBase"]
[PlyCount "84"]
[EventDate "2024.01.18"]
[EventType "team-tourn"]
[EventCountry "ESP"]
[SourceTitle "playchess.com"]
[Source "ChessBase"]
[SourceQuality "1"]
[TimeControl "5400+30"]

1. Nf3 {[%emt 0:00:02]} Nf6 {[%emt 0:00:56]} 2. b3 {[%emt 0:00:05]} e6 {[%emt 0:03:29]} 3. Bb2 {[%emt 0:00:18]} c5 {[%emt 0:00:15]} 4. e3 {[%emt 0:00:36]} b6 {[%emt 0:00:53]} 5. c4 {[%emt 0:01:43]} Bb7 {[%emt 1:27:27]} 6. Be2 {[%emt 0:00:55]} Be7 {[%emt 0:00:00]} 7. O-O {[%emt 0:00:31]} O-O {[%emt 0:00:00]} 8. d4 {[%emt 0:01:36]} cxd4 {[%emt 0:00:00]} 9. Nxd4 {[%emt 0:00:56]} a6 {[%emt 0:00:00]} 10. Bf3 {[%emt 0:08:01]} Qc7 {[%emt 0:00:00]} 11. Nd2 {[%emt 0:05:23]} d6 {[%emt 0:00:00]} 12. Qc2 {[%emt 0:04:54]} Nbd7 {[%emt 0:00:00]} 13. Ne4 {[%emt 0:00:46]} Rac8 {[%emt 0:00:00]} 14. Rac1 {[%emt 0:05:03]} Ne5 {[%emt 0:00:00]} 15. Nxf6+ {[%emt 0:01:11]} Bxf6 {[%emt 0:00:00]} 16. Be4 {[%emt 0:09:00]} h6 {[%emt 0:00:00]} 17. h3 {[%emt 0:12:01]} Qb8 {[%emt 0:00:00]} 18. f4 {[%emt 0:09:45]} Nd7 {[%emt 0:00:00]} 19. f5 {[%emt 0:05:18]} Bxe4 {[%emt 0:00:00]} 20. Qxe4 {[%emt 0:00:37]} Nc5 {[%emt 0:00:00]} 21. Qc2 {[%emt 0:01:11]} e5 {[%emt 0:00:00]} 22. Ne2 {[%emt 0:05:52]} d5 {[%emt 0:00:00]} 23. Nc3 {[%emt 0:04:32]} dxc4 {[%emt 0:00:00]} 24. bxc4 {[%emt 0:00:17]} e4 {[%emt 0:00:00]} 25. Nd5 {[%emt 0:03:48]} Bxb2 {[%emt 0:00:00]} 26. Qxb2 {[%emt 0:00:10]} Nd3 {[%emt 0:00:00]} 27. Qd4 {[%emt 0:00:53]} Nxc1 {[%emt 0:00:00]} 28. Ne7+ {[%emt 0:00:15]} Kh7 {[%emt 0:00:00]} 29. Rxc1 {[%emt 0:00:36]} Rcd8 {[%emt 0:00:00]} 30. Qxe4 {[%emt 0:00:35]} f6 {[%emt 0:00:00]} 31. Nc6 {[%emt 0:04:25]} Qb7 {[%emt 0:00:00]} 32. Qe6 {[%emt 0:01:27]} Rc8 {[%emt 0:00:00]} 33. Nd4 {[%emt 0:00:57]} Rfe8 {[%emt 0:00:00]} 34. Qd6 {[%emt 0:01:12]} Rxe3 {[%emt 0:00:00]} 35. Ne6 {[%emt 0:00:13]} Qe4 {[%emt 0:00:00]} 36. Qd7 {[%emt 0:03:28]} Rg3 {[%emt 0:00:00]} 37. Qd2 {[%emt 0:01:05]} Qxf5 {[%emt 0:00:00]} 38. Nf4 {[%emt 0:00:26]} Re8 {[%emt 0:00:00]} 39. Kh2 {[%emt 0:00:41]} Rge3 {[%emt 0:00:00]} 40. Nd5 {[%emt 0:01:12]} Re2 {[%emt 0:00:00]} 41. Qc3 {[%emt 0:00:24]} Rxg2+ {[%emt 0:00:00]} 42. Kxg2 {[%emt 0:00:28]} Re2+ {[%emt 0:00:00]} 0-1

[Event "Lliga Catalana 2024"]
[Site "Catalonia"]
[Date "2024.02.03"]
[Round "3.6"]
[White "Bofill Mas, Alejandro"]
[Black "Ortin Blanco, Inigo"]
[Result "1/2-1/2"]
[ECO "A37"]
[WhiteElo "2274"]
[BlackElo "2290"]
[Annotator "ChessBase"]
[PlyCount "87"]
[EventDate "2024.01.18"]
[EventType "team-tourn"]
[EventCountry "ESP"]
[SourceTitle "playchess.com"]
[Source "ChessBase"]
[SourceQuality "1"]
[TimeControl "5400+30"]

1. c4 {[%emt 0:19:17]} c5 {[%emt 0:00:31]} 2. g3 {[%emt 0:00:20]} Nc6 {[%emt 0:00:23]} 3. Bg2 {[%emt 0:00:14]} g6 {[%emt 0:00:36]} 4. Nc3 {[%emt 0:01:03]} Bg7 {[%emt 0:00:17]} 5. Nf3 {[%emt 0:00:20]} d6 {[%emt 0:01:05]} 6. O-O {[%emt 0:00:42]} e6 {[%emt 0:00:29]} 7. e3 {[%emt 0:00:44]} Nge7 {[%emt 0:01:00]} 8. d4 {[%emt 0:00:45]} O-O {[%emt 0:01:13]} 9. d5 {[%emt 0:04:19]} Na5 {[%emt 0:02:24]} 10. Nd2 {[%emt 0:01:34]} exd5 {[%emt 0:11:29]} 11. Nxd5 {[%emt 0:05:36]} Nxd5 {[%emt 0:00:55]} 12. Bxd5 {[%emt 0:00:40]} Be6 {[%emt 0:01:14]} 13. Qc2 {[%emt 0:12:22]} Bxd5 {[%emt 0:03:50]} 14. cxd5 {[%emt 0:00:03]} b5 {[%emt 0:00:27]} 15. Rb1 {[%emt 0:02:35]} Rc8 {[%emt 0:08:46]} 16. b3 {[%emt 0:04:35]} c4 {[%emt 0:03:43]} 17. b4 {[%emt 0:04:23]} c3 {[%emt 0:03:53]} 18. bxa5 {[%emt 0:04:44]} cxd2 {[%emt 0:00:28]} 19. Qxd2 {[%emt 0:00:13]} Bc3 {[%emt 0:00:44]} 20. Qe2 {[%emt 0:02:12]} a6 {[%emt 0:01:47]} 21. a4 {[%emt 0:03:50]} b4 {[%emt 0:08:18]} 22. Qxa6 {[%emt 0:05:31]} Ra8 {[%emt 0:05:04]} 23. Qc6 {[%emt 0:02:16]} Qxa5 {[%emt 0:09:59]} 24. Bb2 {[%emt 0:01:27]} Rac8 {[%emt 0:06:43]} 25. Qb5 {[%emt 0:02:11]} Rc5 {[%emt 0:12:04]} 26. Qxa5 {[%emt 0:01:16]} Rxa5 {[%emt 0:00:05]} 27. Bxc3 {[%emt 0:00:37]} bxc3 {[%emt 0:00:05]} 28. Rfc1 {[%emt 0:00:30]} Rc8 {[%emt 0:00:20]} 29. Rb3 {[%emt 0:01:07]} c2 {[%emt 0:00:13]} 30. Rb2 {[%emt 0:00:33]} Rac5 {[%emt 0:00:14]} 31. Kf1 {[%emt 0:01:58]} Kg7 {[%emt 0:00:19]} 32. Ke2 {[%emt 0:00:56]} Kf6 {[%emt 0:05:00]} 33. f4 {[%emt 0:00:21]} h5 {[%emt 0:00:13]} 34. Rb5 {[%emt 0:01:09]} Kf5 {[%emt 0:03:37]} 35. Rxc5 {[%emt 0:00:50]} Rxc5 {[%emt 0:00:04]} 36. Kf3 {[%emt 0:00:12]} Rc3 {[%emt 0:00:24]} 37. a5 {[%emt 0:00:25]} g5 {[%emt 0:01:28]} 38. fxg5 {[%emt 0:00:51]} Kxg5 {[%emt 0:00:18]} 39. a6 {[%emt 0:00:27]} Kf5 {[%emt 0:00:14]} 40. Ke2 {[%emt 0:02:17]} Ke5 {[%emt 0:02:14]} 41. Kd2 {[%emt 0:02:01]} Ra3 {[%emt 0:00:08]} 42. Kxc2 {[%emt 0:04:14]} Rxa6 {[%emt 0:00:17]} 43. Rf1 {[%emt 0:00:27]} f5 {[%emt 0:02:00]} 44. h3 {[%emt 0:01:17]} 1/2-1/2

[Event "Lliga Catalana 2024"]
[Site "Catalonia"]
[Date "2024.02.03"]
[Round "3.6"]
[White "Obon Temprano, Sergi"]
[Black "Boix Redorta, Roc"]
[Result "1-0"]
[ECO "A13"]
[WhiteElo "2194"]
[BlackElo "1925"]
[Annotator "ChessBase"]
[PlyCount "81"]
[EventDate "2024.01.18"]
[EventType "team-tourn"]
[EventCountry "ESP"]
[SourceTitle "playchess.com"]
[Source "ChessBase"]
[SourceQuality "1"]
[TimeControl "5400+30"]

1. Nf3 {[%emt 0:00:03]} Nf6 {[%emt 0:00:18]} 2. c4 {[%emt 0:00:09]} e6 {[%emt 0:00:30]} 3. Nc3 {[%emt 0:01:50]} d5 {[%emt 0:00:07]} 4. e3 {[%emt 0:00:47]} Be7 {[%emt 0:01:57]} 5. b3 {[%emt 0:00:38]} b6 {[%emt 0:00:15]} 6. Be2 {[%emt 0:01:38]} Bb7 {[%emt 0:00:09]} 7. O-O {[%emt 0:00:33]} O-O {[%emt 0:00:16]} 8. Bb2 {[%emt 0:02:15]} c5 {[%emt 0:01:18]} 9. d4 {[%emt 0:05:29]} Nc6 {[%emt 0:01:56]} 10. cxd5 {[%emt 0:02:08]} exd5 {[%emt 0:00:59]} 11. Rc1 {[%emt 0:02:38]} cxd4 {[%emt 0:03:29]} 12. Nxd4 {[%emt 0:04:22]} Nxd4 {[%emt 0:01:19]} 13. Qxd4 {[%emt 0:02:16]} Bc5 {[%emt 0:01:32]} 14. Qh4 {[%emt 0:04:39]} Re8 {[%emt 0:03:14]} 15. Rfd1 {[%emt 0:05:24]} a6 {[%emt 0:03:15]} 16. Bf3 {[%emt 0:03:50]} Be7 {[%emt 0:14:06]} 17. Qd4 {[%emt 0:12:00]} Bc5 {[%emt 0:03:29]} 18. Qd3 {[%emt 0:02:20]} Qe7 {[%emt 0:02:39]} 19. Nxd5 {[%emt 0:06:38]} Bxd5 {[%emt 0:04:17]} 20. Bxd5 {[%emt 0:00:30]} Rad8 {[%emt 0:00:38]} 21. Bxf6 {[%emt 0:05:11]} Qxf6 {[%emt 0:00:10]} 22. Qxa6 {[%emt 0:02:53]} h6 {[%emt 0:03:46]} 23. Bf3 {[%emt 0:03:28]} Bd6 {[%emt 0:03:05]} 24. Rd4 {[%emt 0:07:14]} Bxh2+ {[%emt 0:02:05]} 25. Kf1 {[%emt 0:04:31]} Rxd4 {[%emt 0:00:33]} 26. exd4 {[%emt 0:00:08]} Qxd4 {[%emt 0:02:59]} 27. Qb5 {[%emt 0:03:57]} Re6 {[%emt 0:01:59]} 28. Rc8+ {[%emt 0:02:07]} Kh7 {[%emt 0:00:01]} 29. Qf5+ {[%emt 0:00:12]} Rg6 {[%emt 0:00:03]} 30. Rc1 {[%emt 0:01:10]} Qf6 {[%emt 0:06:36]} 31. Be4 {[%emt 0:01:35]} Qh4 {[%emt 0:05:08]} 32. Rc4 {[%emt 0:03:53]} Qd8 {[%emt 0:02:03]} 33. Qf3 {[%emt 0:02:11]} Be5 {[%emt 0:00:05]} 34. Rc1 {[%emt 0:01:37]} Qd2 {[%emt 0:00:16]} 35. Rd1 {[%emt 0:00:20]} Qf4 {[%emt 0:01:09]} 36. Qxf4 {[%emt 0:00:37]} Bxf4 {[%emt 0:00:01]} 37. Rd7 {[%emt 0:00:19]} Kg8 {[%emt 0:00:08]} 38. Bxg6 {[%emt 0:00:07]} fxg6 {[%emt 0:00:01]} 39. Rb7 {[%emt 0:00:11]} Kh7 {[%emt 0:00:14]} 40. Rxb6 {[%emt 0:00:14]} h5 {[%emt 0:00:03]} 41. a4 {[%emt 0:00:20]} 1-0